[Event "*** Titled Tuesday Blitz"]
[Site "Chess.com"]
[Date "2019.06.04"]
[Round "4"]
[White "GMHess"]
[Black "fastestmindalive"]
[Result "0-1"]
[WhiteElo "2655"]
[BlackElo "2805"]
[TimeControl "180+2"]
[EndTime "13:52:49 PDT"]
[Termination "fastestmindalive won by resignation"]

1. b3 {[%clk 0:03:01.9]} 1... e5 {[%clk 0:03:00.6]} 2. Bb2 {[%clk 0:03:03.8]}
2... Nc6 {[%clk 0:03:02.1]} 3. e3 {[%clk 0:03:05.4]} 3... Nf6 {[%clk 0:03:03.6]}
4. Bb5 {[%clk 0:03:06.8]} 4... Bd6 {[%clk 0:03:04.9]} 5. Ne2 {[%clk 0:03:08.4]}
5... e4 {[%clk 0:02:47.7]} 6. Bxc6 {[%clk 0:03:00.8]} 6... dxc6 {[%clk
0:02:47.3]} 7. Ng3 {[%clk 0:03:02.4]} 7... h5 {[%clk 0:02:20]} 8. Bxf6 {[%clk
0:02:57.2]} 8... Qxf6 {[%clk 0:02:19.9]} 9. Nc3 {[%clk 0:02:58.8]} 9... Be5
{[%clk 0:02:05.5]} 10. Ncxe4 {[%clk 0:02:53.3]} 10... Qg6 {[%clk 0:01:57.7]} 11.
d4 {[%clk 0:02:53.1]} 11... Bxg3 {[%clk 0:01:52]} 12. Nxg3 {[%clk 0:02:51.8]}
12... h4 {[%clk 0:01:53.3]} 13. Ne2 {[%clk 0:02:51.7]} 13... Qxg2 {[%clk
0:01:51.2]} 14. Rg1 {[%clk 0:02:53]} 14... Qxh2 {[%clk 0:01:51.8]} 15. Qd3
{[%clk 0:02:39.5]} 15... Be6 {[%clk 0:01:45.7]} 16. Qe4 {[%clk 0:02:12.7]} 16...
O-O-O {[%clk 0:01:37.4]} 17. Rh1 {[%clk 0:02:12.1]} 17... Qd6 {[%clk 0:01:38]}
18. Rxh4 {[%clk 0:02:08.5]} 18... Rxh4 {[%clk 0:01:13]} 19. Qxh4 {[%clk
0:02:10.4]} 19... Qb4+ {[%clk 0:01:07.4]} 20. Kf1 {[%clk 0:01:33.3]} 20... Qd2
{[%clk 0:01:04.1]} 21. Qe4 {[%clk 0:01:26.7]} 21... Rh8 {[%clk 0:01:04.6]} 22.
Ng3 {[%clk 0:01:11.1]} 22... Rh2 {[%clk 0:00:51.7]} 23. Qf4 {[%clk 0:01:02.4]}
23... Bh3+ {[%clk 0:00:45.5]} 24. Kg1 {[%clk 0:00:54.7]} 24... Rg2+ {[%clk
0:00:44.6]} 25. Kh1 {[%clk 0:00:56]} 25... Rxf2 {[%clk 0:00:44.6]} 26. Ne4
{[%clk 0:00:54.8]} 26... Rxf4 {[%clk 0:00:16.1]} 27. Nxd2 {[%clk 0:00:55.9]}
27... Rf2 {[%clk 0:00:17.7]} 28. Rd1 {[%clk 0:00:51.8]} 28... Bg4 {[%clk
0:00:18.3]} 29. Kg1 {[%clk 0:00:53.3]} 29... Bxd1 {[%clk 0:00:16.7]} 30. Kxf2
{[%clk 0:00:54.5]} 30... Bxc2 {[%clk 0:00:18.4]} 31. Nc4 {[%clk 0:00:48.3]}
31... f6 {[%clk 0:00:18]} 32. Nd2 {[%clk 0:00:41.2]} 32... Bh7 {[%clk
0:00:18.1]} 33. e4 {[%clk 0:00:41.7]} 33... Kd7 {[%clk 0:00:19]} 34. Ke3 {[%clk
0:00:43.4]} 34... b6 {[%clk 0:00:20.3]} 35. Nf3 {[%clk 0:00:43.5]} 35... a5
{[%clk 0:00:21.4]} 36. a3 {[%clk 0:00:42.9]} 36... Bg8 {[%clk 0:00:20.6]} 37. b4
{[%clk 0:00:44.3]} 37... axb4 {[%clk 0:00:22.1]} 38. axb4 {[%clk 0:00:46.2]}
38... Kd6 {[%clk 0:00:21.5]} 39. Nh4 {[%clk 0:00:44.2]} 39... Be6 {[%clk
0:00:21.6]} 40. Ng6 {[%clk 0:00:42]} 40... c5 {[%clk 0:00:21.9]} 41. bxc5+
{[%clk 0:00:43.3]} 41... bxc5 {[%clk 0:00:23.5]} 42. dxc5+ {[%clk 0:00:34.8]}
42... Kxc5 {[%clk 0:00:25.4]} 43. Nf4 {[%clk 0:00:36.5]} 43... Bf7 {[%clk
0:00:26.4]} 44. Nd3+ {[%clk 0:00:37.3]} 44... Kd6 {[%clk 0:00:27.6]} 45. Kd4
{[%clk 0:00:37.7]} 45... g5 {[%clk 0:00:21.7]} 46. e5+ {[%clk 0:00:38.8]} 46...
fxe5+ {[%clk 0:00:22.1]} 47. Nxe5 {[%clk 0:00:40.6]} 47... Bd5 {[%clk
0:00:22.3]} 48. Nd3 {[%clk 0:00:34]} 48... g4 {[%clk 0:00:18.3]} 49. Ke3 {[%clk
0:00:31.9]} 49... g3 {[%clk 0:00:17.7]} 50. Nf4 {[%clk 0:00:30.6]} 50... g2
{[%clk 0:00:18.6]} 51. Kf2 {[%clk 0:00:24.7]} 51... Ke5 {[%clk 0:00:19]} 52.
Nxg2 {[%clk 0:00:15.6]} 52... Bxg2 {[%clk 0:00:19.6]} 53. Kxg2 {[%clk
0:00:17.5]} 53... Kd4 {[%clk 0:00:21.1]} 54. Kf2 {[%clk 0:00:19.2]} 54... Kd3
{[%clk 0:00:22.5]} 55. Ke1 {[%clk 0:00:20.9]} 55... c5 {[%clk 0:00:24.1]} 56.
Kd1 {[%clk 0:00:22.5]} 56... c4 {[%clk 0:00:25.5]} 57. Kc1 {[%clk 0:00:24.4]}
57... Kc3 {[%clk 0:00:26.9]} 0-1

[Event "*** Titled Tuesday Blitz"]
[Site "Chess.com"]
[Date "2019.06.04"]
[Round "4"]
[White "MathiasWomacka"]
[Black "matiss90"]
[Result "0-1"]
[WhiteElo "2304"]
[BlackElo "2459"]
[TimeControl "180+2"]
[EndTime "13:52:56 PDT"]
[Termination "matiss90 won by checkmate"]

1. e4 {[%clk 0:03:01.9]} 1... c5 {[%clk 0:03:00.7]} 2. Nf3 {[%clk 0:03:02.2]}
2... d6 {[%clk 0:03:02]} 3. d4 {[%clk 0:03:03.7]} 3... cxd4 {[%clk 0:03:03.9]}
4. Nxd4 {[%clk 0:03:05.4]} 4... Nf6 {[%clk 0:03:05.4]} 5. Nc3 {[%clk 0:03:07]}
5... g6 {[%clk 0:03:06.6]} 6. Be3 {[%clk 0:03:06.7]} 6... Bg7 {[%clk 0:03:08]}
7. f3 {[%clk 0:03:08.2]} 7... O-O {[%clk 0:03:09]} 8. Qd2 {[%clk 0:03:09.5]}
8... Nc6 {[%clk 0:03:10.5]} 9. O-O-O {[%clk 0:03:10.1]} 9... d5 {[%clk
0:02:55.3]} 10. exd5 {[%clk 0:03:12]} 10... Nxd5 {[%clk 0:02:54.1]} 11. Nxc6
{[%clk 0:03:06.5]} 11... bxc6 {[%clk 0:02:54.8]} 12. Bd4 {[%clk 0:03:08]} 12...
Nxc3 {[%clk 0:02:54.8]} 13. Qxc3 {[%clk 0:03:07.8]} 13... Bh6+ {[%clk
0:02:40.2]} 14. Be3 {[%clk 0:03:08.3]} 14... Bxe3+ {[%clk 0:02:40.8]} 15. Qxe3
{[%clk 0:03:10.2]} 15... Qb6 {[%clk 0:02:42]} 16. Qxe7 {[%clk 0:03:09.8]} 16...
Be6 {[%clk 0:02:42.9]} 17. Qa3 {[%clk 0:03:02.5]} 17... c5 {[%clk 0:02:43.8]}
18. Bd3 {[%clk 0:02:55.9]} 18... c4 {[%clk 0:02:42]} 19. Be4 {[%clk 0:02:56.8]}
19... Rab8 {[%clk 0:02:40.1]} 20. Qc3 {[%clk 0:02:40.3]} 20... a5 {[%clk
0:02:25]} 21. h4 {[%clk 0:02:30.5]} 21... Qb4 {[%clk 0:02:25]} 22. Qxb4 {[%clk
0:02:24.5]} 22... axb4 {[%clk 0:02:25.9]} 23. Rd6 {[%clk 0:02:08.6]} 23... Rfc8
{[%clk 0:02:19.6]} 24. Rhd1 {[%clk 0:02:00.2]} 24... Kg7 {[%clk 0:02:16.2]} 25.
Bd5 {[%clk 0:01:52.6]} 25... Bxd5 {[%clk 0:02:01.6]} 26. R1xd5 {[%clk
0:01:53.2]} 26... b3 {[%clk 0:01:52.5]} 27. axb3 {[%clk 0:01:47.8]} 27... cxb3
{[%clk 0:01:53.4]} 28. c3 {[%clk 0:01:49.3]} 28... Ra8 {[%clk 0:01:54.3]} 29.
Rb5 {[%clk 0:01:45.3]} 29... Ra1+ {[%clk 0:01:46.8]} 30. Kd2 {[%clk 0:01:45.4]}
30... Rg1 {[%clk 0:01:42.3]} 31. Rxb3 {[%clk 0:01:41]} 31... Rxg2+ {[%clk
0:01:43.2]} 32. Kd3 {[%clk 0:01:35.2]} 32... Rg3 {[%clk 0:01:42.7]} 33. Ke4
{[%clk 0:01:35.1]} 33... Re8+ {[%clk 0:01:26.4]} 34. Kf4 {[%clk 0:01:30.7]}
34... Rg2 {[%clk 0:01:27.2]} 35. Rb7 {[%clk 0:01:29.7]} 35... h6 {[%clk
0:00:21.9]} 36. Rdd7 {[%clk 0:01:29.8]} 36... g5+ {[%clk 0:00:22.8]} 37. hxg5
{[%clk 0:01:30.4]} 37... hxg5+ {[%clk 0:00:24.2]} 38. Kf5 {[%clk 0:01:31.6]}
38... Rf8 {[%clk 0:00:25.4]} 39. c4 {[%clk 0:01:11.7]} 39... Rf2 {[%clk
0:00:25.1]} 40. Kxg5 {[%clk 0:01:12.1]} 40... Rxf3 {[%clk 0:00:25.9]} 41. c5
{[%clk 0:00:27.2]} 41... Rg8 {[%clk 0:00:25.3]} 42. c6 {[%clk 0:00:22.3]} 42...
Kh8+ {[%clk 0:00:20.9]} 43. Kh4 {[%clk 0:00:17.3]} 43... Rf6 {[%clk 0:00:19.3]}
44. Kh5 {[%clk 0:00:07.7]} 44... Rf5+ {[%clk 0:00:15.5]} 45. Kh6 {[%clk
0:00:04.7]} 45... Rf1 {[%clk 0:00:13.4]} 46. Rd5 {[%clk 0:00:04.3]} 46... Rg6+
{[%clk 0:00:13.8]} 47. Kh5 {[%clk 0:00:04.9]} 47... Rh1# {[%clk 0:00:14.7]} 0-1

[Event "*** Titled Tuesday Blitz"]
[Site "Chess.com"]
[Date "2019.06.04"]
[Round "4"]
[White "Yashasd1995"]
[Black "SloLev"]
[Result "0-1"]
[WhiteElo "2497"]
[BlackElo "2498"]
[TimeControl "180+2"]
[EndTime "13:52:56 PDT"]
[Termination "SloLev won on time"]

1. b3 {[%clk 0:03:01.9]} 1... d5 {[%clk 0:02:57.4]} 2. Bb2 {[%clk 0:03:03.8]}
2... Nd7 {[%clk 0:02:58.7]} 3. f4 {[%clk 0:03:02.8]} 3... Ngf6 {[%clk
0:02:57.6]} 4. Nf3 {[%clk 0:03:02.9]} 4... e6 {[%clk 0:02:57.6]} 5. e3 {[%clk
0:03:03.9]} 5... Bd6 {[%clk 0:02:59]} 6. Be2 {[%clk 0:03:04.8]} 6... b6 {[%clk
0:02:56.3]} 7. O-O {[%clk 0:03:03.7]} 7... Bb7 {[%clk 0:02:57.4]} 8. Ne5 {[%clk
0:03:02.5]} 8... Qe7 {[%clk 0:02:54.3]} 9. d3 {[%clk 0:03:02.9]} 9... O-O-O
{[%clk 0:02:50.1]} 10. a4 {[%clk 0:03:00.3]} 10... h5 {[%clk 0:02:49]} 11. a5
{[%clk 0:02:56.5]} 11... Bc5 {[%clk 0:02:20.6]} 12. d4 {[%clk 0:02:40.2]} 12...
Bd6 {[%clk 0:02:20]} 13. axb6 {[%clk 0:02:40.4]} 13... axb6 {[%clk 0:02:19.2]}
14. Nc3 {[%clk 0:02:37.1]} 14... c6 {[%clk 0:02:16.3]} 15. Ra7 {[%clk
0:02:32.3]} 15... Bb8 {[%clk 0:02:03.2]} 16. Ra2 {[%clk 0:02:05.5]} 16... Nxe5
{[%clk 0:01:46.2]} 17. fxe5 {[%clk 0:02:05.1]} 17... Nd7 {[%clk 0:01:47.6]} 18.
Ba6 {[%clk 0:01:55.7]} 18... Bxa6 {[%clk 0:01:35.1]} 19. Rxa6 {[%clk 0:01:57.6]}
19... Kb7 {[%clk 0:01:36.6]} 20. Qe2 {[%clk 0:01:57.6]} 20... Bc7 {[%clk
0:01:21.9]} 21. Ba3 {[%clk 0:01:49.5]} 21... Qe8 {[%clk 0:01:12.8]} 22. Bb4
{[%clk 0:01:24.6]} 22... f6 {[%clk 0:00:52.3]} 23. Rfa1 {[%clk 0:01:23.2]} 23...
Nb8 {[%clk 0:00:51.2]} 24. Ra7+ {[%clk 0:01:18.5]} 24... Kc8 {[%clk 0:00:52.5]}
25. Bd6 {[%clk 0:00:28.6]} 25... Rd7 {[%clk 0:00:40]} 26. Bxc7 {[%clk
0:00:21.6]} 26... Rxc7 {[%clk 0:00:41.9]} 27. Rxc7+ {[%clk 0:00:23.5]} 27...
Kxc7 {[%clk 0:00:43.3]} 28. Ra7+ {[%clk 0:00:24.6]} 28... Kc8 {[%clk 0:00:43.3]}
29. Rxg7 {[%clk 0:00:23.1]} 29... fxe5 {[%clk 0:00:38.7]} 30. dxe5 {[%clk
0:00:19.2]} 30... Qf8 {[%clk 0:00:39.8]} 31. Ra7 {[%clk 0:00:17.6]} 31... Qc5
{[%clk 0:00:40]} 32. Na4 {[%clk 0:00:17.9]} 32... Qb4 {[%clk 0:00:41.5]} 33. h3
{[%clk 0:00:09.8]} 33... Rf8 {[%clk 0:00:40.3]} 34. Qxh5 {[%clk 0:00:10.4]}
34... Qe1+ {[%clk 0:00:39.7]} 35. Kh2 {[%clk 0:00:10.9]} 35... Qxe3 {[%clk
0:00:41.2]} 36. Qh4 {[%clk 0:00:02.1]} 36... Qxe5+ {[%clk 0:00:40.3]} 37. Qg3
{[%clk 0:00:03.7]} 37... Rf5 {[%clk 0:00:19.1]} 38. Nxb6+ {[%clk 0:00:04.1]}
38... Kd8 {[%clk 0:00:19.4]} 39. Ra8 {[%clk 0:00:04.2]} 39... Qxg3+ {[%clk
0:00:17.2]} 40. Kxg3 {[%clk 0:00:05.1]} 40... Kc7 {[%clk 0:00:19.1]} 41. Na4
{[%clk 0:00:04.5]} 41... Nd7 {[%clk 0:00:20.6]} 42. Ra7+ {[%clk 0:00:04.9]}
42... Kd6 {[%clk 0:00:21.9]} 43. Nc3 {[%clk 0:00:05.3]} 43... e5 {[%clk
0:00:22.6]} 44. h4 {[%clk 0:00:04.8]} 44... e4 {[%clk 0:00:23.5]} 45. Kg4 {[%clk
0:00:05]} 45... Rf2 {[%clk 0:00:23.4]} 46. g3 {[%clk 0:00:05.9]} 46... Rxc2
{[%clk 0:00:24.9]} 47. Nd1 {[%clk 0:00:06.7]} 47... d4 {[%clk 0:00:21.9]} 48. h5
{[%clk 0:00:05.1]} 48... e3 {[%clk 0:00:23.2]} 49. Ra4 {[%clk 0:00:05.4]} 49...
c5 {[%clk 0:00:23.3]} 50. Ra6+ {[%clk 0:00:05.4]} 50... Kd5 {[%clk 0:00:24.6]}
51. Ra1 {[%clk 0:00:02.4]} 51... Rh2 {[%clk 0:00:23.6]} 0-1

[Event "*** Titled Tuesday Blitz"]
[Site "Chess.com"]
[Date "2019.06.04"]
[Round "4"]
[White "gemarin"]
[Black "savinspm"]
[Result "1-0"]
[WhiteElo "2060"]
[BlackElo "2071"]
[TimeControl "180+2"]
[EndTime "13:52:58 PDT"]
[Termination "gemarin won by checkmate"]

1. d4 {[%clk 0:03:01.3]} 1... Nf6 {[%clk 0:03:00.2]} 2. c4 {[%clk 0:03:01]} 2...
e6 {[%clk 0:03:01.3]} 3. Nf3 {[%clk 0:03:00.9]} 3... Bb4+ {[%clk 0:03:02.1]} 4.
Bd2 {[%clk 0:03:01.3]} 4... Qe7 {[%clk 0:03:02.6]} 5. e3 {[%clk 0:02:56.8]} 5...
b6 {[%clk 0:03:03.1]} 6. Bd3 {[%clk 0:02:56.7]} 6... Bb7 {[%clk 0:03:04.1]} 7.
O-O {[%clk 0:02:58]} 7... O-O {[%clk 0:03:04.2]} 8. a3 {[%clk 0:02:55.7]} 8...
Bxd2 {[%clk 0:03:05]} 9. Nfxd2 {[%clk 0:02:52.9]} 9... d6 {[%clk 0:02:59.5]} 10.
Nc3 {[%clk 0:02:52.9]} 10... Nbd7 {[%clk 0:02:58.8]} 11. b4 {[%clk 0:02:45.7]}
11... c5 {[%clk 0:02:59.1]} 12. Re1 {[%clk 0:02:44.2]} 12... h6 {[%clk 0:02:55]}
13. Rb1 {[%clk 0:02:32]} 13... Rfc8 {[%clk 0:02:49.9]} 14. Nf3 {[%clk 0:02:29]}
14... e5 {[%clk 0:02:40.9]} 15. Bf1 {[%clk 0:02:13.3]} 15... e4 {[%clk
0:02:24.2]} 16. Nd2 {[%clk 0:02:04]} 16... Nf8 {[%clk 0:02:20.5]} 17. d5 {[%clk
0:01:59.8]} 17... Re8 {[%clk 0:02:15]} 18. bxc5 {[%clk 0:01:51.6]} 18... dxc5
{[%clk 0:02:00.8]} 19. Nb5 {[%clk 0:01:49.9]} 19... Ba6 {[%clk 0:01:54.4]} 20.
d6 {[%clk 0:01:47]} 20... Qd7 {[%clk 0:01:52.9]} 21. Nc7 {[%clk 0:01:46.9]}
21... Bb7 {[%clk 0:01:45.9]} 22. Nxa8 {[%clk 0:01:45.4]} 22... Rxa8 {[%clk
0:01:40.6]} 23. Nb3 {[%clk 0:01:45.3]} 23... Rd8 {[%clk 0:01:35.8]} 24. Qd2
{[%clk 0:01:44]} 24... Qxd6 {[%clk 0:01:36.6]} 25. Qxd6 {[%clk 0:01:43.2]} 25...
Rxd6 {[%clk 0:01:37.6]} 26. Red1 {[%clk 0:01:44.1]} 26... Rxd1 {[%clk
0:01:33.8]} 27. Rxd1 {[%clk 0:01:44.1]} 27... Ne6 {[%clk 0:01:35.3]} 28. g3
{[%clk 0:01:37.2]} 28... Kf8 {[%clk 0:01:35.8]} 29. a4 {[%clk 0:01:30.1]} 29...
a5 {[%clk 0:01:34.2]} 30. Rb1 {[%clk 0:01:28.3]} 30... Bc6 {[%clk 0:01:34.8]}
31. Nd2 {[%clk 0:01:27.8]} 31... Nd7 {[%clk 0:01:35.7]} 32. Be2 {[%clk
0:01:16.8]} 32... f5 {[%clk 0:01:32.7]} 33. Bd1 {[%clk 0:01:17.6]} 33... Ke7
{[%clk 0:01:32.5]} 34. h4 {[%clk 0:01:02.6]} 34... g6 {[%clk 0:01:29.3]} 35. g4
{[%clk 0:00:51.3]} 35... f4 {[%clk 0:01:23.4]} 36. Bc2 {[%clk 0:00:44.4]} 36...
fxe3 {[%clk 0:01:04.5]} 37. fxe3 {[%clk 0:00:43.8]} 37... g5 {[%clk 0:01:03.5]}
38. hxg5 {[%clk 0:00:37.8]} 38... Nxg5 {[%clk 0:01:02.1]} 39. Kf2 {[%clk
0:00:35.2]} 39... Kd6 {[%clk 0:01:00.1]} 40. Kg3 {[%clk 0:00:35.1]} 40... Ke5
{[%clk 0:00:57.3]} 41. Rf1 {[%clk 0:00:30.9]} 41... Nf6 {[%clk 0:00:47.9]} 42.
Rf5+ {[%clk 0:00:31]} 42... Ke6 {[%clk 0:00:48.8]} 43. Rf4 {[%clk 0:00:29.9]}
43... Ke5 {[%clk 0:00:49.3]} 44. Rf1 {[%clk 0:00:29.7]} 44... Ke6 {[%clk
0:00:48.4]} 45. Rh1 {[%clk 0:00:29.2]} 45... Nf7 {[%clk 0:00:47.3]} 46. Kf4
{[%clk 0:00:23.5]} 46... Ne5 {[%clk 0:00:15.1]} 47. Nxe4 {[%clk 0:00:10.1]}
47... Nexg4 {[%clk 0:00:14.6]} 48. Nxf6 {[%clk 0:00:09.6]} 48... Nxf6 {[%clk
0:00:15.2]} 49. Rxh6 {[%clk 0:00:10.5]} 49... Ke7 {[%clk 0:00:15.8]} 50. e4
{[%clk 0:00:10.3]} 50... Be8 {[%clk 0:00:14.6]} 51. e5 {[%clk 0:00:11.2]} 51...
Nd7 {[%clk 0:00:14.6]} 52. Rh7+ {[%clk 0:00:12.2]} 52... Ke6 {[%clk 0:00:15.1]}
53. Bf5# {[%clk 0:00:12.3]} 1-0

[Event "*** Titled Tuesday Blitz"]
[Site "Chess.com"]
[Date "2019.06.04"]
[Round "4"]
[White "Ambitiousresolutions"]
[Black "JozefKneht"]
[Result "1-0"]
[WhiteElo "2606"]
[BlackElo "2515"]
[TimeControl "180+2"]
[EndTime "13:53:07 PDT"]
[Termination "Ambitiousresolutions won by resignation"]

1. e4 {[%clk 0:03:01.9]} 1... Nf6 {[%clk 0:02:57.7]} 2. e5 {[%clk 0:03:01.9]}
2... Nd5 {[%clk 0:02:58.8]} 3. d4 {[%clk 0:03:02.4]} 3... d6 {[%clk 0:02:59.9]}
4. Nf3 {[%clk 0:03:03.8]} 4... Bg4 {[%clk 0:03:00.3]} 5. Be2 {[%clk 0:02:59]}
5... e6 {[%clk 0:03:00.3]} 6. c4 {[%clk 0:02:57.6]} 6... Nb6 {[%clk 0:03:00.7]}
7. exd6 {[%clk 0:02:58.5]} 7... cxd6 {[%clk 0:03:02.6]} 8. Nc3 {[%clk
0:02:56.1]} 8... Be7 {[%clk 0:03:03.3]} 9. h3 {[%clk 0:02:54.1]} 9... Bh5 {[%clk
0:03:03.4]} 10. O-O {[%clk 0:02:54.8]} 10... O-O {[%clk 0:03:03.8]} 11. b3
{[%clk 0:02:53.7]} 11... Nc6 {[%clk 0:02:58.1]} 12. d5 {[%clk 0:02:44.2]} 12...
Bf6 {[%clk 0:02:58.3]} 13. dxc6 {[%clk 0:02:34.4]} 13... Bxc3 {[%clk 0:02:56.5]}
14. cxb7 {[%clk 0:02:35.5]} 14... Rb8 {[%clk 0:02:56.7]} 15. Rb1 {[%clk
0:02:19.9]} 15... Rxb7 {[%clk 0:02:35.4]} 16. Ba3 {[%clk 0:02:20.1]} 16... Rd7
{[%clk 0:02:31.1]} 17. Qc2 {[%clk 0:02:18]} 17... Bf6 {[%clk 0:02:30.3]} 18.
Rfd1 {[%clk 0:02:14.3]} 18... Qc7 {[%clk 0:02:20.9]} 19. Rd2 {[%clk 0:02:04.9]}
19... Rc8 {[%clk 0:02:13]} 20. Rbd1 {[%clk 0:01:46.8]} 20... d5 {[%clk 0:02:13]}
21. Qb1 {[%clk 0:01:31.5]} 21... Bg6 {[%clk 0:01:48.2]} 22. Bd3 {[%clk
0:01:22.3]} 22... dxc4 {[%clk 0:01:44.6]} 23. Bxg6 {[%clk 0:01:22.9]} 23... hxg6
{[%clk 0:01:45.7]} 24. Rxd7 {[%clk 0:01:15]} 24... Nxd7 {[%clk 0:01:45.6]} 25.
bxc4 {[%clk 0:01:16.1]} 25... Nb6 {[%clk 0:01:27.6]} 26. c5 {[%clk 0:01:09.2]}
26... Nc4 {[%clk 0:01:28.5]} 27. Qd3 {[%clk 0:00:54.7]} 27... Nxa3 {[%clk
0:01:21.6]} 28. Qxa3 {[%clk 0:00:56.6]} 28... Qxc5 {[%clk 0:01:09.2]} 29. Qa6
{[%clk 0:00:55.1]} 29... Qc7 {[%clk 0:00:46.3]} 30. g3 {[%clk 0:00:51.5]} 30...
Rb8 {[%clk 0:00:38.1]} 31. Rd2 {[%clk 0:00:43.9]} 31... Qb7 {[%clk 0:00:36.8]}
32. Qe2 {[%clk 0:00:41.3]} 32... Rd8 {[%clk 0:00:29.8]} 33. Rxd8+ {[%clk
0:00:38.9]} 33... Bxd8 {[%clk 0:00:31.7]} 34. Kg2 {[%clk 0:00:38.4]} 34... Bb6
{[%clk 0:00:32.3]} 35. Qc4 {[%clk 0:00:31.3]} 35... Qd5 {[%clk 0:00:31.2]} 36.
Qxd5 {[%clk 0:00:25.4]} 36... exd5 {[%clk 0:00:31.5]} 37. Kf1 {[%clk 0:00:24.4]}
37... f6 {[%clk 0:00:32]} 38. Ke2 {[%clk 0:00:23.6]} 38... g5 {[%clk 0:00:29.7]}
39. g4 {[%clk 0:00:23.1]} 39... Kf7 {[%clk 0:00:30.7]} 40. Ne1 {[%clk
0:00:23.8]} 40... Ke6 {[%clk 0:00:31.3]} 41. Nd3 {[%clk 0:00:24.9]} 41... g6
{[%clk 0:00:31.4]} 42. f4 {[%clk 0:00:24.1]} 42... Bc7 {[%clk 0:00:19.7]} 43.
fxg5 {[%clk 0:00:23.9]} 43... fxg5 {[%clk 0:00:21.3]} 44. Ne1 {[%clk 0:00:23.2]}
44... Bd6 {[%clk 0:00:21.7]} 45. Nf3 {[%clk 0:00:22.8]} 45... Be7 {[%clk
0:00:21.2]} 46. Kd3 {[%clk 0:00:24.7]} 46... Kd6 {[%clk 0:00:21.6]} 47. Kd4
{[%clk 0:00:20.4]} 47... Bf6+ {[%clk 0:00:22.6]} 48. Kd3 {[%clk 0:00:21.8]}
48... Kc5 {[%clk 0:00:24.1]} 49. Nd2 {[%clk 0:00:20.3]} 49... Kb4 {[%clk
0:00:24]} 50. Kc2 {[%clk 0:00:20.9]} 50... a5 {[%clk 0:00:24.7]} 51. Nf3 {[%clk
0:00:21.3]} 51... a4 {[%clk 0:00:25.4]} 52. Ne1 {[%clk 0:00:22.4]} 52... Kc4
{[%clk 0:00:25.7]} 53. Nf3 {[%clk 0:00:23.2]} 53... d4 {[%clk 0:00:25.6]} 54.
Nd2+ {[%clk 0:00:23.3]} 54... Kd5 {[%clk 0:00:25.9]} 55. Kd3 {[%clk 0:00:24.2]}
55... Ke5 {[%clk 0:00:25.2]} 56. Nf3+ {[%clk 0:00:20.9]} 56... Kf4 {[%clk
0:00:25.7]} 57. Nd2 {[%clk 0:00:18.7]} 57... Kg3 {[%clk 0:00:26.1]} 58. Ne4+
{[%clk 0:00:19.7]} 58... Kxh3 {[%clk 0:00:25.3]} 59. Nxf6 {[%clk 0:00:21.6]} 1-0

[Event "*** Titled Tuesday Blitz"]
[Site "Chess.com"]
[Date "2019.06.04"]
[Round "4"]
[White "flubs"]
[Black "Spring199"]
[Result "1-0"]
[WhiteElo "2322"]
[BlackElo "2207"]
[TimeControl "180+2"]
[EndTime "13:53:07 PDT"]
[Termination "flubs won on time"]

1. c4 {[%clk 0:03:01.9]} 1... e5 {[%clk 0:02:59.4]} 2. g3 {[%clk 0:03:02.7]}
2... Nf6 {[%clk 0:02:57.7]} 3. Bg2 {[%clk 0:03:01.8]} 3... g6 {[%clk 0:02:57.1]}
4. Nf3 {[%clk 0:02:58.2]} 4... Nc6 {[%clk 0:02:57.5]} 5. d4 {[%clk 0:02:54.2]}
5... Bg7 {[%clk 0:02:59.4]} 6. Nxe5 {[%clk 0:02:50.5]} 6... Nxe5 {[%clk
0:02:51.1]} 7. dxe5 {[%clk 0:02:52.4]} 7... Ng4 {[%clk 0:02:51.9]} 8. f4 {[%clk
0:02:46.2]} 8... O-O {[%clk 0:02:52.1]} 9. e4 {[%clk 0:02:36.6]} 9... d6 {[%clk
0:02:50.1]} 10. exd6 {[%clk 0:02:34.1]} 10... cxd6 {[%clk 0:02:50.7]} 11. h3
{[%clk 0:02:28.8]} 11... Nh6 {[%clk 0:02:21]} 12. O-O {[%clk 0:02:28.9]} 12...
Qb6+ {[%clk 0:02:17]} 13. Kh2 {[%clk 0:02:29.7]} 13... Bxb2 {[%clk 0:02:16.1]}
14. Bxb2 {[%clk 0:02:25.8]} 14... Qxb2 {[%clk 0:02:16.4]} 15. Nd2 {[%clk
0:02:27.3]} 15... Kg7 {[%clk 0:02:05]} 16. Nb3 {[%clk 0:02:20.1]} 16... Be6
{[%clk 0:02:03.7]} 17. Qxd6 {[%clk 0:02:14.8]} 17... Bxc4 {[%clk 0:02:03.1]} 18.
Rfd1 {[%clk 0:02:12.1]} 18... Rad8 {[%clk 0:01:50.6]} 19. Qb4 {[%clk 0:01:48.7]}
19... Be2 {[%clk 0:01:31.7]} 20. Rdb1 {[%clk 0:01:24.2]} 20... Qf6 {[%clk
0:01:25.1]} 21. Qxb7 {[%clk 0:01:19.2]} 21... Qc3 {[%clk 0:01:05.7]} 22. Rc1
{[%clk 0:01:03.7]} 22... Qe3 {[%clk 0:01:05.4]} 23. Rc7 {[%clk 0:00:57.3]} 23...
Bf3 {[%clk 0:01:03.1]} 24. Qxa7 {[%clk 0:00:48.5]} 24... Qe2 {[%clk 0:01:02]}
25. Rg1 {[%clk 0:00:42]} 25... Rd1 {[%clk 0:00:57.3]} 26. Nd4 {[%clk 0:00:21]}
26... Rxg1 {[%clk 0:00:33.1]} 27. Nxe2 {[%clk 0:00:21.5]} 27... Rxg2+ {[%clk
0:00:33.4]} 28. Kh1 {[%clk 0:00:23.2]} 28... Rxe2+ {[%clk 0:00:31.1]} 29. Kg1
{[%clk 0:00:24]} 29... Rd8 {[%clk 0:00:30.4]} 30. Rd7 {[%clk 0:00:21.3]} 30...
Rxd7 {[%clk 0:00:16.5]} 31. Qxd7 {[%clk 0:00:23.2]} 31... Rg2+ {[%clk 0:00:17]}
32. Kf1 {[%clk 0:00:23.3]} 32... Rxg3 {[%clk 0:00:17.3]} 33. Kf2 {[%clk
0:00:24.6]} 33... Rg2+ {[%clk 0:00:10.5]} 34. Kxf3 {[%clk 0:00:24.4]} 34... Rxa2
{[%clk 0:00:11.7]} 35. Qd4+ {[%clk 0:00:23.8]} 35... Kg8 {[%clk 0:00:11.5]} 36.
Qb4 {[%clk 0:00:20.9]} 36... Rh2 {[%clk 0:00:08.5]} 37. Kg3 {[%clk 0:00:21.1]}
37... Rc2 {[%clk 0:00:08.3]} 38. Qb3 {[%clk 0:00:20.1]} 38... Rc8 {[%clk
0:00:08]} 39. Qd3 {[%clk 0:00:19]} 39... Kg7 {[%clk 0:00:08.3]} 40. Kf2 {[%clk
0:00:16.9]} 40... Ng8 {[%clk 0:00:08.6]} 41. Qd4+ {[%clk 0:00:15.9]} 41... Nf6
{[%clk 0:00:08.7]} 42. e5 {[%clk 0:00:13.7]} 42... Nh5 {[%clk 0:00:08.5]} 43.
e6+ {[%clk 0:00:14.8]} 43... Nf6 {[%clk 0:00:03.1]} 44. e7 {[%clk 0:00:13.1]}
44... Re8 {[%clk 0:00:03.6]} 45. Qe5 {[%clk 0:00:14.1]} 45... h6 {[%clk
0:00:03.3]} 46. h4 {[%clk 0:00:13.9]} 46... h5 {[%clk 0:00:03.6]} 47. Ke2 {[%clk
0:00:09.9]} 47... Ra8 {[%clk 0:00:04.6]} 48. Kd1 {[%clk 0:00:08.3]} 48... Rc8
{[%clk 0:00:04.3]} 49. Kd2 {[%clk 0:00:07.5]} 49... Ra8 {[%clk 0:00:03.3]} 50.
Kc1 {[%clk 0:00:08.4]} 1-0